[Event "Titled Tuesday Blitz November 07 Early 2023"]
[White "Pranesh M"]
[Black "Principe, Gerson"]
[WhiteFideId "35028600"]
[BlackFideId "3804550"]
[WhiteElo "3027"]
[BlackElo "2648"]
[Result "1-0"]
[Round "2"]
[TimeControl "180+1"]
[Date "2023.11.07"]
[WhiteClock "0:01:44"]
[BlackClock "0:00:14"]
[Board "12"]

1. e4 {[%clk 0:03:00]}  c6 {[%clk 0:02:57]} 2. d4 {[%clk 0:03:00]}  d5 {[%clk 0:02:57]} 3. e5 {[%clk 0:03:01]}  Bf5 {[%clk 0:02:56]} 4. Nc3 {[%clk 0:03:01]}  e6 {[%clk 0:02:56]} 5. g4 {[%clk 0:03:01]}  Bg6 {[%clk 0:02:56]} 6. Nge2 {[%clk 0:03:01]}  h5 {[%clk 0:02:37]} 7. Nf4 {[%clk 0:03:01]}  Ne7 {[%clk 0:02:38]} 8. Nxg6 {[%clk 0:02:56]}  Nxg6 {[%clk 0:02:37]} 9. gxh5 {[%clk 0:02:57]}  Ne7 {[%clk 0:02:37]} 10. Qg4 {[%clk 0:02:56]}  c5 {[%clk 0:02:36]} 11. Nb5 {[%clk 0:02:55]}  Nf5 {[%clk 0:02:28]} 12. Bd3 {[%clk 0:02:52]}  a6 {[%clk 0:02:23]} 13. Nd6+ {[%clk 0:02:42]}  Nxd6 {[%clk 0:02:20]} 14. exd6 {[%clk 0:02:42]}  Qxd6 {[%clk 0:02:11]} 15. Bf4 {[%clk 0:02:37]}  Qb6 {[%clk 0:02:00]} 16. O-O-O {[%clk 0:02:34]}  Nd7 {[%clk 0:01:53]} 17. dxc5 {[%clk 0:02:19]}  Nxc5 {[%clk 0:01:46]} 18. Bg5 {[%clk 0:02:15]}  Nxd3+ {[%clk 0:01:29]} 19. Rxd3 {[%clk 0:02:16]}  Rc8 {[%clk 0:01:05]} 20. Re1 {[%clk 0:02:16]}  Qc6 {[%clk 0:00:53]} 21. Re2 {[%clk 0:01:56]}  Be7 {[%clk 0:00:29]} 22. Bxe7 {[%clk 0:01:52]}  Kxe7 {[%clk 0:00:30]} 23. Qg5+ {[%clk 0:01:51]}  Kf8 {[%clk 0:00:30]} 24. Rg3 {[%clk 0:01:50]}  Rh7 {[%clk 0:00:23]} 25. h6 {[%clk 0:01:50]}  Qc4 {[%clk 0:00:14]} 26. Rc3 {[%clk 0:01:44]} 1-0


[Site "https://www.chess.com"]

[Event "Titled Tuesday Blitz November 07 Early 2023"]
[White "Janaszak, Dawid"]
[Black "Deac, Bogdan-Daniel"]
[WhiteFideId "1119206"]
[BlackFideId "1226380"]
[WhiteElo "2644"]
[BlackElo "3001"]
[Result "0-1"]
[Round "2"]
[TimeControl "180+1"]
[Date "2023.11.07"]
[WhiteClock "0:00:04"]
[BlackClock "0:00:03"]
[Board "14"]

1. e4 {[%clk 0:03:00]}  c5 {[%clk 0:02:58]} 2. Nc3 {[%clk 0:03:00]}  e6 {[%clk 0:02:58]} 3. Nge2 {[%clk 0:02:57]}  a6 {[%clk 0:02:55]} 4. g3 {[%clk 0:02:53]}  b5 {[%clk 0:02:54]} 5. Bg2 {[%clk 0:02:52]}  Bb7 {[%clk 0:02:53]} 6. O-O {[%clk 0:02:47]}  Nf6 {[%clk 0:02:49]} 7. d3 {[%clk 0:02:34]}  d6 {[%clk 0:02:42]} 8. h3 {[%clk 0:02:27]}  h5 {[%clk 0:02:40]} 9. Bg5 {[%clk 0:02:13]}  Be7 {[%clk 0:02:33]} 10. a3 {[%clk 0:01:51]}  Nbd7 {[%clk 0:02:26]} 11. f4 {[%clk 0:01:46]}  Qc7 {[%clk 0:02:13]} 12. Qd2 {[%clk 0:01:42]}  Bc6 {[%clk 0:01:56]} 13. Nd1 {[%clk 0:01:39]}  d5 {[%clk 0:01:49]} 14. e5 {[%clk 0:01:35]}  Ng8 {[%clk 0:01:47]} 15. Bxe7 {[%clk 0:01:24]}  Nxe7 {[%clk 0:01:46]} 16. d4 {[%clk 0:01:23]}  cxd4 {[%clk 0:01:34]} 17. Nxd4 {[%clk 0:01:22]}  g6 {[%clk 0:01:34]} 18. Ne3 {[%clk 0:01:21]}  Rc8 {[%clk 0:01:32]} 19. c3 {[%clk 0:01:21]}  Qb6 {[%clk 0:01:32]} 20. Kh1 {[%clk 0:01:18]}  Nc5 {[%clk 0:01:32]} 21. Rad1 {[%clk 0:01:06]}  Bb7 {[%clk 0:01:24]} 22. Kh2 {[%clk 0:01:05]}  Nf5 {[%clk 0:01:19]} 23. Rde1 {[%clk 0:00:52]}  Ne4 {[%clk 0:01:11]} 24. Bxe4 {[%clk 0:00:51]}  dxe4 {[%clk 0:01:10]} 25. Nexf5 {[%clk 0:00:45]}  gxf5 {[%clk 0:01:08]} 26. Qe3 {[%clk 0:00:44]}  Qc5 {[%clk 0:01:07]} 27. Rd1 {[%clk 0:00:40]}  Bd5 {[%clk 0:00:56]} 28. Rf2 {[%clk 0:00:40]}  Bc4 {[%clk 0:00:46]} 29. Rfd2 {[%clk 0:00:39]}  Bd3 {[%clk 0:00:46]} 30. Re1 {[%clk 0:00:37]}  a5 {[%clk 0:00:32]} 31. Kg2 {[%clk 0:00:37]}  b4 {[%clk 0:00:29]} 32. axb4 {[%clk 0:00:37]}  axb4 {[%clk 0:00:29]} 33. Rc1 {[%clk 0:00:38]}  Qd5 {[%clk 0:00:19]} 34. Kf2 {[%clk 0:00:37]}  bxc3 {[%clk 0:00:17]} 35. Rxc3 {[%clk 0:00:36]}  Rxc3 {[%clk 0:00:15]} 36. bxc3 {[%clk 0:00:37]}  Qa5 {[%clk 0:00:15]} 37. Ne2 {[%clk 0:00:33]}  Ke7 {[%clk 0:00:10]} 38. Nc1 {[%clk 0:00:28]}  Bc4 {[%clk 0:00:09]} 39. Qd4 {[%clk 0:00:28]}  Qc7 {[%clk 0:00:06]} 40. Rb2 {[%clk 0:00:15]}  Rd8 {[%clk 0:00:05]} 41. Qe3 {[%clk 0:00:16]}  Rd1 {[%clk 0:00:04]} 42. Ne2 {[%clk 0:00:15]}  Rd3 {[%clk 0:00:02]} 43. Qc1 {[%clk 0:00:13]}  Rf3+ {[%clk 0:00:02]} 44. Kg2 {[%clk 0:00:13]}  Bxe2 {[%clk 0:00:03]} 45. Rxe2 {[%clk 0:00:13]}  Qxc3 {[%clk 0:00:03]} 46. Qe1 {[%clk 0:00:09]}  Qxe1 {[%clk 0:00:03]} 47. Rxe1 {[%clk 0:00:10]}  h4 {[%clk 0:00:03]} 48. gxh4 {[%clk 0:00:07]}  Rxf4 {[%clk 0:00:03]} 49. Kg3 {[%clk 0:00:06]}  Rf3+ {[%clk 0:00:03]} 50. Kg2 {[%clk 0:00:07]}  Kf8 {[%clk 0:00:03]} 51. Rd1 {[%clk 0:00:07]}  Kg7 {[%clk 0:00:04]} 52. Rd7 {[%clk 0:00:06]}  Rd3 {[%clk 0:00:03]} 53. Rc7 {[%clk 0:00:06]}  f4 {[%clk 0:00:03]} 54. h5 {[%clk 0:00:06]}  Rg3+ {[%clk 0:00:03]} 55. Kf2 {[%clk 0:00:05]}  e3+ {[%clk 0:00:03]} 56. Ke2 {[%clk 0:00:06]}  Rxh3 {[%clk 0:00:03]} 57. h6+ {[%clk 0:00:04]}  Rxh6 {[%clk 0:00:03]} 0-1


[Site "https://www.chess.com"]

[Event "Titled Tuesday Blitz November 07 Early 2023"]
[White "Ibarra Jerez, Jose Carlos"]
[Black "Skvortsov, Andrei"]
[WhiteFideId "2226332"]
[BlackFideId "24108600"]
[WhiteElo "3001"]
[BlackElo "2637"]
[Result "0-1"]
[Round "2"]
[TimeControl "180+1"]
[Date "2023.11.07"]
[WhiteClock "0:00:01"]
[BlackClock "0:01:15"]
[Board "15"]

1. e4 {[%clk 0:03:00]}  d5 {[%clk 0:02:59]} 2. exd5 {[%clk 0:03:00]}  Qxd5 {[%clk 0:03:00]} 3. Nc3 {[%clk 0:03:00]}  Qe5+ {[%clk 0:03:01]} 4. Be2 {[%clk 0:02:59]}  Bg4 {[%clk 0:03:01]} 5. d4 {[%clk 0:02:56]}  Bxe2 {[%clk 0:03:02]} 6. Ngxe2 {[%clk 0:02:55]}  Qa5 {[%clk 0:03:02]} 7. b4 {[%clk 0:02:51]}  Qxb4 {[%clk 0:03:01]} 8. Rb1 {[%clk 0:02:51]}  Qc4 {[%clk 0:03:00]} 9. Rxb7 {[%clk 0:02:41]}  Nf6 {[%clk 0:02:58]} 10. O-O {[%clk 0:02:38]}  e6 {[%clk 0:02:50]} 11. Nb5 {[%clk 0:02:25]}  Na6 {[%clk 0:02:42]} 12. Nec3 {[%clk 0:01:49]}  Bb4 {[%clk 0:02:25]} 13. Qf3 {[%clk 0:01:23]}  O-O {[%clk 0:02:10]} 14. Bf4 {[%clk 0:01:18]}  c6 {[%clk 0:02:05]} 15. Be5 {[%clk 0:00:50]}  Ne8 {[%clk 0:02:03]} 16. Ne4 {[%clk 0:00:28]}  cxb5 {[%clk 0:02:02]} 17. Bxg7 {[%clk 0:00:28]}  Kxg7 {[%clk 0:01:55]} 18. Qg3+ {[%clk 0:00:18]}  Kh8 {[%clk 0:01:49]} 19. Qe5+ {[%clk 0:00:19]}  f6 {[%clk 0:01:47]} 20. Qh5 {[%clk 0:00:13]}  Nac7 {[%clk 0:01:45]} 21. c3 {[%clk 0:00:12]}  Qc6 {[%clk 0:01:39]} 22. Nc5 {[%clk 0:00:03]}  Bxc5 {[%clk 0:01:38]} 23. Qxc5 {[%clk 0:00:04]}  Qxc5 {[%clk 0:01:36]} 24. dxc5 {[%clk 0:00:05]}  a6 {[%clk 0:01:35]} 25. Rd1 {[%clk 0:00:04]}  Rf7 {[%clk 0:01:35]} 26. c6 {[%clk 0:00:04]}  Kg7 {[%clk 0:01:34]} 27. g3 {[%clk 0:00:05]}  e5 {[%clk 0:01:31]} 28. Rd7 {[%clk 0:00:05]}  Kf8 {[%clk 0:01:29]} 29. Kg2 {[%clk 0:00:05]}  Rc8 {[%clk 0:01:28]} 30. Kf3 {[%clk 0:00:04]}  f5 {[%clk 0:01:27]} 31. g4 {[%clk 0:00:03]}  fxg4+ {[%clk 0:01:17]} 32. Ke4 {[%clk 0:00:04]}  Nf6+ {[%clk 0:01:17]} 33. Kxe5 {[%clk 0:00:04]}  Nxd7+ {[%clk 0:01:18]} 34. Kd6 {[%clk 0:00:01]}  Nf6 {[%clk 0:01:15]} 0-1


[Site "https://www.chess.com"]

[Event "Titled Tuesday Blitz November 07 Early 2023"]
[White "Ismagilov, Damir"]
[Black "Shimanov, Aleksandr"]
[WhiteFideId "34199982"]
[BlackFideId "4198603"]
[WhiteElo "2634"]
[BlackElo "2975"]
[Result "1/2-1/2"]
[Round "2"]
[TimeControl "180+1"]
[Date "2023.11.07"]
[WhiteClock "0:00:24"]
[BlackClock "0:00:28"]
[Board "17"]

1. d4 {[%clk 0:03:00]}  g6 {[%clk 0:02:56]} 2. Bf4 {[%clk 0:03:00]}  Bg7 {[%clk 0:02:45]} 3. e3 {[%clk 0:02:59]}  d6 {[%clk 0:02:45]} 4. Nf3 {[%clk 0:02:59]}  Nd7 {[%clk 0:02:44]} 5. Bg3 {[%clk 0:02:59]}  e5 {[%clk 0:02:43]} 6. dxe5 {[%clk 0:03:00]}  dxe5 {[%clk 0:02:43]} 7. c3 {[%clk 0:03:01]}  Ne7 {[%clk 0:02:42]} 8. Nbd2 {[%clk 0:03:01]}  O-O {[%clk 0:02:42]} 9. Be2 {[%clk 0:02:59]}  Nf5 {[%clk 0:02:38]} 10. O-O {[%clk 0:02:57]}  h5 {[%clk 0:02:37]} 11. e4 {[%clk 0:02:47]}  Nxg3 {[%clk 0:02:30]} 12. hxg3 {[%clk 0:02:48]}  Qe7 {[%clk 0:02:30]} 13. Nc4 {[%clk 0:02:47]}  Bh6 {[%clk 0:02:19]} 14. Qc2 {[%clk 0:02:44]}  f6 {[%clk 0:02:12]} 15. b4 {[%clk 0:02:36]}  Kg7 {[%clk 0:02:08]} 16. Rad1 {[%clk 0:02:35]}  Nb6 {[%clk 0:02:00]} 17. Na5 {[%clk 0:02:15]}  c6 {[%clk 0:01:56]} 18. Nb3 {[%clk 0:02:16]}  Be6 {[%clk 0:01:49]} 19. Nc5 {[%clk 0:02:15]}  Bf7 {[%clk 0:01:49]} 20. a4 {[%clk 0:02:15]}  Rad8 {[%clk 0:01:49]} 21. Rxd8 {[%clk 0:02:12]}  Rxd8 {[%clk 0:01:48]} 22. Rd1 {[%clk 0:02:12]}  Rxd1+ {[%clk 0:01:45]} 23. Qxd1 {[%clk 0:02:13]}  Nc8 {[%clk 0:01:45]} 24. Qd7 {[%clk 0:01:54]}  Qxd7 {[%clk 0:01:44]} 25. Nxd7 {[%clk 0:01:55]}  Nd6 {[%clk 0:01:43]} 26. Bd3 {[%clk 0:01:49]}  Bc1 {[%clk 0:01:31]} 27. b5 {[%clk 0:01:24]}  Bb2 {[%clk 0:01:21]} 28. bxc6 {[%clk 0:01:22]}  bxc6 {[%clk 0:01:21]} 29. c4 {[%clk 0:01:19]}  Nxc4 {[%clk 0:01:18]} 30. Nb8 {[%clk 0:01:01]}  Na5 {[%clk 0:01:15]} 31. Na6 {[%clk 0:01:00]}  Kf8 {[%clk 0:01:02]} 32. Kf1 {[%clk 0:00:59]}  Ke7 {[%clk 0:01:01]} 33. Ke2 {[%clk 0:00:59]}  Kd6 {[%clk 0:01:01]} 34. Nd2 {[%clk 0:00:55]}  Bd4 {[%clk 0:00:55]} 35. f3 {[%clk 0:00:53]}  c5 {[%clk 0:00:55]} 36. Bb5 {[%clk 0:00:48]}  c4 {[%clk 0:00:53]} 37. Nb4 {[%clk 0:00:47]}  c3 {[%clk 0:00:50]} 38. Nb1 {[%clk 0:00:39]}  Kc5 {[%clk 0:00:46]} 39. Nc2 {[%clk 0:00:38]}  Nc4 {[%clk 0:00:40]} 40. Nba3 {[%clk 0:00:26]}  Nxa3 {[%clk 0:00:25]} 41. Nxa3 {[%clk 0:00:26]}  Kb4 {[%clk 0:00:19]} 42. Nc2+ {[%clk 0:00:27]}  Kb3 {[%clk 0:00:19]} 43. Kd3 {[%clk 0:00:27]}  Kb2 {[%clk 0:00:20]} 44. g4 {[%clk 0:00:14]}  hxg4 {[%clk 0:00:18]} 45. fxg4 {[%clk 0:00:14]}  Bb3 {[%clk 0:00:18]} 46. Nb4 {[%clk 0:00:05]}  c2 {[%clk 0:00:18]} 47. Nxc2 {[%clk 0:00:03]}  Bxc2+ {[%clk 0:00:18]} 48. Ke2 {[%clk 0:00:03]}  Bxe4 {[%clk 0:00:19]} 49. g3 {[%clk 0:00:04]}  a5 {[%clk 0:00:17]} 50. Be8 {[%clk 0:00:03]}  g5 {[%clk 0:00:17]} 51. Kf1 {[%clk 0:00:02]}  Ka3 {[%clk 0:00:16]} 52. Bb5 {[%clk 0:00:02]}  Bc2 {[%clk 0:00:17]} 53. Ke2 {[%clk 0:00:03]}  Bxa4 {[%clk 0:00:18]} 54. Bc4 {[%clk 0:00:03]}  Kb4 {[%clk 0:00:19]} 55. Kd2 {[%clk 0:00:03]}  Bb5 {[%clk 0:00:20]} 56. Bd5 {[%clk 0:00:04]}  a4 {[%clk 0:00:20]} 57. Kc2 {[%clk 0:00:04]}  a3 {[%clk 0:00:21]} 58. Kb1 {[%clk 0:00:05]}  Bc4 {[%clk 0:00:20]} 59. Be4 {[%clk 0:00:04]}  a2+ {[%clk 0:00:19]} 60. Kc2 {[%clk 0:00:05]}  Kc5 {[%clk 0:00:15]} 61. Bd5 {[%clk 0:00:04]}  Kd6 {[%clk 0:00:16]} 62. Bxc4 {[%clk 0:00:04]}  Ke7 {[%clk 0:00:17]} 63. Bxa2 {[%clk 0:00:04]}  Kf8 {[%clk 0:00:17]} 64. Kd3 {[%clk 0:00:04]}  Kg7 {[%clk 0:00:18]} 65. Ke4 {[%clk 0:00:04]}  Kh6 {[%clk 0:00:19]} 66. Kf5 {[%clk 0:00:05]}  Kg7 {[%clk 0:00:20]} 67. Bb3 {[%clk 0:00:03]}  Kh8 {[%clk 0:00:21]} 68. Bd5 {[%clk 0:00:04]}  Kg7 {[%clk 0:00:22]} 69. Be4 {[%clk 0:00:04]}  Kh7 {[%clk 0:00:23]} 70. Kxf6+ {[%clk 0:00:05]}  Kh6 {[%clk 0:00:23]} 71. Kf5 {[%clk 0:00:04]}  Bf2 {[%clk 0:00:08]} 72. Kxe5 {[%clk 0:00:04]}  Bxg3+ {[%clk 0:00:09]} 73. Kf5 {[%clk 0:00:04]}  Bf4 {[%clk 0:00:10]} 74. Bd3 {[%clk 0:00:03]}  Bc1 {[%clk 0:00:09]} 75. Be2 {[%clk 0:00:04]}  Bd2 {[%clk 0:00:10]} 76. Bf3 {[%clk 0:00:05]}  Bc1 {[%clk 0:00:10]} 77. Be4 {[%clk 0:00:06]}  Bd2 {[%clk 0:00:11]} 78. Bd5 {[%clk 0:00:07]}  Bc1 {[%clk 0:00:11]} 79. Be6 {[%clk 0:00:08]}  Bd2 {[%clk 0:00:12]} 80. Bd7 {[%clk 0:00:09]}  Bc1 {[%clk 0:00:12]} 81. Bc8 {[%clk 0:00:10]}  Bf4 {[%clk 0:00:12]} 82. Bb7 {[%clk 0:00:11]}  Kg7 {[%clk 0:00:12]} 83. Bf3 {[%clk 0:00:12]}  Kf8 {[%clk 0:00:13]} 84. Ke4 {[%clk 0:00:12]}  Ke7 {[%clk 0:00:14]} 85. Kf5 {[%clk 0:00:13]}  Kd6 {[%clk 0:00:15]} 86. Be4 {[%clk 0:00:14]}  Kc5 {[%clk 0:00:15]} 87. Bf3 {[%clk 0:00:15]}  Kb4 {[%clk 0:00:16]} 88. Ba8 {[%clk 0:00:15]}  Kc3 {[%clk 0:00:17]} 89. Bb7 {[%clk 0:00:16]}  Kd2 {[%clk 0:00:18]} 90. Ba8 {[%clk 0:00:17]}  Ke3 {[%clk 0:00:19]} 91. Bb7 {[%clk 0:00:17]}  Kd4 {[%clk 0:00:19]} 92. Ba8 {[%clk 0:00:18]}  Kc5 {[%clk 0:00:20]} 93. Be4 {[%clk 0:00:18]}  Kb6 {[%clk 0:00:21]} 94. Bf3 {[%clk 0:00:19]}  Kc7 {[%clk 0:00:22]} 95. Be4 {[%clk 0:00:20]}  Kd6 {[%clk 0:00:23]} 96. Bf3 {[%clk 0:00:20]}  Kc5 {[%clk 0:00:23]} 97. Be4 {[%clk 0:00:21]}  Kd4 {[%clk 0:00:24]} 98. Bc6 {[%clk 0:00:22]}  Ke3 {[%clk 0:00:25]} 99. Bb7 {[%clk 0:00:22]}  Kd4 {[%clk 0:00:26]} 100. Ba8 {[%clk 0:00:23]}  Kc5 {[%clk 0:00:27]} 101. Bb7 {[%clk 0:00:24]}  Kd4 {[%clk 0:00:28]} 1/2-1/2


[Site "https://www.chess.com"]

[Event "Titled Tuesday Blitz November 07 Early 2023"]
[White "Volkov, Maksim"]
[Black "Kovalenko, Igor"]
[WhiteFideId "54123070"]
[BlackFideId "14117908"]
[WhiteElo "2630"]
[BlackElo "2958"]
[Result "0-1"]
[Round "2"]
[TimeControl "180+1"]
[Date "2023.11.07"]
[WhiteClock "0:00:19"]
[BlackClock "0:01:58"]
[Board "19"]

1. d4 {[%clk 0:03:00]}  Nf6 {[%clk 0:02:59]} 2. c4 {[%clk 0:02:59]}  e6 {[%clk 0:02:59]} 3. g3 {[%clk 0:02:59]}  c5 {[%clk 0:02:59]} 4. d5 {[%clk 0:02:59]}  exd5 {[%clk 0:03:00]} 5. cxd5 {[%clk 0:03:00]}  d6 {[%clk 0:03:00]} 6. Nc3 {[%clk 0:03:00]}  Nbd7 {[%clk 0:03:00]} 7. Bg2 {[%clk 0:02:57]}  a6 {[%clk 0:02:59]} 8. a4 {[%clk 0:02:55]}  Ne5 {[%clk 0:02:56]} 9. h3 {[%clk 0:02:50]}  g6 {[%clk 0:02:48]} 10. f4 {[%clk 0:02:49]}  Nc4 {[%clk 0:02:47]} 11. Nf3 {[%clk 0:02:41]}  Bg7 {[%clk 0:02:47]} 12. a5 {[%clk 0:02:31]}  O-O {[%clk 0:02:42]} 13. Qa4 {[%clk 0:02:28]}  b5 {[%clk 0:02:42]} 14. axb6 {[%clk 0:02:26]}  Nxb6 {[%clk 0:02:42]} 15. Qd1 {[%clk 0:02:19]}  Bb7 {[%clk 0:02:42]} 16. e4 {[%clk 0:02:10]}  Re8 {[%clk 0:02:42]} 17. O-O {[%clk 0:01:53]}  Nxe4 {[%clk 0:02:41]} 18. Nxe4 {[%clk 0:01:51]}  Rxe4 {[%clk 0:02:42]} 19. Qc2 {[%clk 0:01:38]}  Rc4 {[%clk 0:02:39]} 20. Qd3 {[%clk 0:01:28]}  Bxd5 {[%clk 0:02:38]} 21. Rd1 {[%clk 0:01:22]}  Be4 {[%clk 0:02:21]} 22. Qxd6 {[%clk 0:01:20]}  Bd4+ {[%clk 0:02:21]} 23. Rxd4 {[%clk 0:01:19]}  Rxd4 {[%clk 0:02:12]} 24. Qxc5 {[%clk 0:01:13]}  Rd1+ {[%clk 0:02:12]} 25. Kh2 {[%clk 0:01:13]}  Rc8 {[%clk 0:02:11]} 26. Qe3 {[%clk 0:01:11]}  Qd5 {[%clk 0:02:03]} 27. Qxb6 {[%clk 0:00:56]}  Bxf3 {[%clk 0:02:03]} 28. Ra5 {[%clk 0:00:19]}  Rc2 {[%clk 0:01:58]} 0-1


[Site "https://www.chess.com"]

[Event "Titled Tuesday Blitz November 07 Early 2023"]
[White "Grigoriants, Sergey"]
[Black "Gubajdullin, Alexei"]
[WhiteFideId "4130804"]
[BlackFideId "4141202"]
[WhiteElo "2952"]
[BlackElo "2625"]
[Result "1-0"]
[Round "2"]
[TimeControl "180+1"]
[Date "2023.11.07"]
[WhiteClock "0:00:07"]
[BlackClock "0:00:00"]
[Board "20"]

1. d4 {[%clk 0:02:54]}  Nf6 {[%clk 0:02:59]} 2. c4 {[%clk 0:02:53]}  g6 {[%clk 0:02:59]} 3. f3 {[%clk 0:02:53]}  Bg7 {[%clk 0:02:59]} 4. e4 {[%clk 0:02:53]}  d6 {[%clk 0:03:00]} 5. Ne2 {[%clk 0:02:53]}  O-O {[%clk 0:03:00]} 6. Be3 {[%clk 0:02:53]}  Nc6 {[%clk 0:02:59]} 7. Nbc3 {[%clk 0:02:50]}  a6 {[%clk 0:02:59]} 8. Rc1 {[%clk 0:02:48]}  e6 {[%clk 0:02:57]} 9. a3 {[%clk 0:02:46]}  b6 {[%clk 0:02:57]} 10. d5 {[%clk 0:02:35]}  Ne5 {[%clk 0:02:09]} 11. Nd4 {[%clk 0:02:33]}  Re8 {[%clk 0:02:08]} 12. Be2 {[%clk 0:02:32]}  exd5 {[%clk 0:02:07]} 13. cxd5 {[%clk 0:02:31]}  Nh5 {[%clk 0:01:56]} 14. O-O {[%clk 0:02:27]}  g5 {[%clk 0:01:56]} 15. Qd2 {[%clk 0:02:15]}  h6 {[%clk 0:01:48]} 16. g3 {[%clk 0:02:13]}  Bh3 {[%clk 0:01:45]} 17. Rf2 {[%clk 0:02:12]}  Bd7 {[%clk 0:01:38]} 18. Na2 {[%clk 0:01:59]}  Nf6 {[%clk 0:01:23]} 19. Qc2 {[%clk 0:01:48]}  g4 {[%clk 0:01:11]} 20. f4 {[%clk 0:01:45]}  Nf3+ {[%clk 0:01:09]} 21. Nxf3 {[%clk 0:01:44]}  gxf3 {[%clk 0:00:55]} 22. Bxf3 {[%clk 0:01:43]}  Nxd5 {[%clk 0:00:55]} 23. Bd2 {[%clk 0:01:40]}  Nf6 {[%clk 0:00:47]} 24. Re1 {[%clk 0:01:22]}  c5 {[%clk 0:00:39]} 25. Nc3 {[%clk 0:01:20]}  Ng4 {[%clk 0:00:33]} 26. Bxg4 {[%clk 0:01:09]}  Bxg4 {[%clk 0:00:32]} 27. f5 {[%clk 0:01:08]}  Bh3 {[%clk 0:00:20]} 28. Nd5 {[%clk 0:01:06]}  Bd4 {[%clk 0:00:20]} 29. Be3 {[%clk 0:01:06]}  Bxe3 {[%clk 0:00:16]} 30. Rxe3 {[%clk 0:01:06]}  Qg5 {[%clk 0:00:16]} 31. Rf4 {[%clk 0:01:00]}  Re5 {[%clk 0:00:16]} 32. Nxb6 {[%clk 0:00:48]}  Rae8 {[%clk 0:00:15]} 33. Nc4 {[%clk 0:00:48]}  R5e7 {[%clk 0:00:09]} 34. Nxd6 {[%clk 0:00:46]}  Rd8 {[%clk 0:00:09]} 35. Qxc5 {[%clk 0:00:36]}  Red7 {[%clk 0:00:09]} 36. e5 {[%clk 0:00:35]}  Qe7 {[%clk 0:00:06]} 37. Kf2 {[%clk 0:00:32]}  Rc7 {[%clk 0:00:05]} 38. Qd4 {[%clk 0:00:26]}  Rc2+ {[%clk 0:00:04]} 39. Re2 {[%clk 0:00:27]}  Rxe2+ {[%clk 0:00:04]} 40. Kxe2 {[%clk 0:00:28]}  Qc7 {[%clk 0:00:04]} 41. Kd2 {[%clk 0:00:14]}  Rb8 {[%clk 0:00:04]} 42. Rf3 {[%clk 0:00:08]}  Qc5 {[%clk 0:00:00]} 43. Qxc5 {[%clk 0:00:07]} 1-0


[Site "https://www.chess.com"]

[Event "Titled Tuesday Blitz November 07 Early 2023"]
[White "Stepanencu, Nicodim-Cosmin"]
[Black "Rostovtsev, Dmitry"]
[WhiteFideId "1256220"]
[BlackFideId "34278320"]
[WhiteElo "2619"]
[BlackElo "2944"]
[Result "0-1"]
[Round "2"]
[TimeControl "180+1"]
[Date "2023.11.07"]
[WhiteClock "0:00:02"]
[BlackClock "0:00:12"]
[Board "23"]

1. c4 {[%clk 0:02:47]}  e6 {[%clk 0:02:59]} 2. d4 {[%clk 0:02:40]}  Nf6 {[%clk 0:02:57]} 3. Nc3 {[%clk 0:02:37]}  Bb4 {[%clk 0:02:56]} 4. Qb3 {[%clk 0:02:35]}  c5 {[%clk 0:02:55]} 5. dxc5 {[%clk 0:02:35]}  Na6 {[%clk 0:02:55]} 6. Bd2 {[%clk 0:02:33]}  O-O {[%clk 0:02:51]} 7. Nf3 {[%clk 0:02:31]}  Bxc3 {[%clk 0:02:47]} 8. Bxc3 {[%clk 0:02:29]}  Nxc5 {[%clk 0:02:48]} 9. Qc2 {[%clk 0:02:30]}  b6 {[%clk 0:02:47]} 10. e3 {[%clk 0:02:30]}  Bb7 {[%clk 0:02:47]} 11. Be2 {[%clk 0:02:30]}  Nfe4 {[%clk 0:02:45]} 12. Bd4 {[%clk 0:02:24]}  a5 {[%clk 0:02:39]} 13. O-O {[%clk 0:02:21]}  Ng5 {[%clk 0:02:35]} 14. Nxg5 {[%clk 0:02:09]}  Qxg5 {[%clk 0:02:36]} 15. f3 {[%clk 0:02:09]}  Rac8 {[%clk 0:02:20]} 16. Rad1 {[%clk 0:02:04]}  d5 {[%clk 0:02:17]} 17. cxd5 {[%clk 0:01:53]}  Bxd5 {[%clk 0:02:11]} 18. Qb1 {[%clk 0:01:53]}  e5 {[%clk 0:02:05]} 19. h4 {[%clk 0:01:36]}  Qh6 {[%clk 0:01:54]} 20. Bxc5 {[%clk 0:01:27]}  Rxc5 {[%clk 0:01:55]} 21. f4 {[%clk 0:01:06]}  Qxh4 {[%clk 0:01:51]} 22. b4 {[%clk 0:01:01]}  axb4 {[%clk 0:01:36]} 23. Qxb4 {[%clk 0:01:02]}  exf4 {[%clk 0:01:18]} 24. Qxb6 {[%clk 0:00:27]}  Rc2 {[%clk 0:00:52]} 25. Rxd5 {[%clk 0:00:27]}  Rxe2 {[%clk 0:00:52]} 26. exf4 {[%clk 0:00:27]}  Qg3 {[%clk 0:00:39]} 27. Rf2 {[%clk 0:00:22]}  Re1+ {[%clk 0:00:38]} 28. Rf1 {[%clk 0:00:21]}  Re2 {[%clk 0:00:38]} 29. Rf2 {[%clk 0:00:20]}  Re1+ {[%clk 0:00:38]} 30. Rf1 {[%clk 0:00:21]}  Rxf1+ {[%clk 0:00:39]} 31. Kxf1 {[%clk 0:00:21]}  Qxf4+ {[%clk 0:00:40]} 32. Kg1 {[%clk 0:00:20]}  Qh4 {[%clk 0:00:28]} 33. Qe3 {[%clk 0:00:14]}  h6 {[%clk 0:00:25]} 34. Rd4 {[%clk 0:00:13]}  Qf6 {[%clk 0:00:19]} 35. a4 {[%clk 0:00:13]}  Ra8 {[%clk 0:00:19]} 36. Qd3 {[%clk 0:00:05]}  g6 {[%clk 0:00:17]} 37. Qd2 {[%clk 0:00:04]}  h5 {[%clk 0:00:15]} 38. Kh2 {[%clk 0:00:02]}  Qe5+ {[%clk 0:00:15]} 39. Kh3 {[%clk 0:00:01]}  Kg7 {[%clk 0:00:15]} 40. Qd3 {[%clk 0:00:01]}  Rb8 {[%clk 0:00:12]} 41. Qd2 {[%clk 0:00:02]}  Rb3+ {[%clk 0:00:12]} 42. Rd3 {[%clk 0:00:03]}  Qf5+ {[%clk 0:00:12]} 43. g4 {[%clk 0:00:02]}  hxg4+ {[%clk 0:00:12]} 0-1


[Site "https://www.chess.com"]